[Event "2nd Cambridge Open 2024"]
[Site "Cambridge"]
[Date "2024.02.22"]
[Round "6.17"]
[White "Gluma, Christian"]
[Black "Sivanandan, Bodhana"]
[Result "1/2-1/2"]
[ECO "B13"]
[WhiteElo "2256"]
[BlackElo "1856"]
[Annotator "TA"]
[PlyCount "109"]
[EventDate "2024.02.18"]
[EventType "swiss"]
[EventCountry "ENG"]
[SourceTitle "playchess.com"]
[Source "ChessBase"]
[SourceQuality "1"]
[TimeControl "5400+30"]

{[%evp 11,109,21,18,13,19,21,45,45,53,51,43,-14,-8,-23,-6,-10,-23,-25,0,-25,-24,-7,0,0,0,0,0,0,0,0,0,-48,-40,-53,15,7,92,23,20,-25,0,-48,6,16,13,14,16,8,8,19,66,62,75,42,55,21,12,15,21,0,0,0,0,-9,0,-46,0,0,0,8,218,218,229,188,281,290,277,274,182,0,67,0,0,0,0,0,0,0,0,0,0,0,0,0,0,0,0,0,0,0]} 1. e4 {[%emt 0:00:12]} c6 {[%emt 1:31:00]} 2. d4 {[%emt 0:00:07]} d5 {[%emt 0:00:00]} 3. exd5 {[%emt 0:00:04]} cxd5 {[%emt 0:00:00]} 4. Bd3 {[%emt 0:00:04]} Nc6 {[%emt 0:00:00]} 5. c3 {[%emt 0:00:05]} Qc7 {[%emt 0:00:00]} 6. Ne2 {[%emt 0:00:32]} Bg4 {[%emt 0:00:00]} 7. O-O {[%emt 0:00:31]} e6 {[%emt 0:00:00]} 8. Qe1 {[%emt 0:00:40]} Bd6 {[%emt 0:00:00]} 9. f3 {[%emt 0:01:06] Weiß steht etwas besser.} Bf5 {[%emt 0:00:00]} (9... Bxh2+ $2 {ist das falsche Schlagen.} 10. Kh1 $18) 10. Bxf5 {[%emt 0:01:28]} exf5 {[%emt 0:00:00]} 11. Nf4+ {[%emt 0:15:47]} (11. Bf4 $14) 11... Nge7 $11 {[%emt 0:00:00]} 12. Nxd5 {[%emt 0:02:08]} Bxh2+ {[%emt 0:00:00]} 13. Kh1 {[%emt 0:00:09]} Qd6 {[%emt 0:00:00][%cal Oh2g3] Zielt auf ...Bg3! ab.} 14. Ne3 {[%emt 0:12:59]} O-O-O {[%emt 0:00:00] Droht stark ...Bg3.} 15. Nc4 {[%emt 0:01:37]} Qg3 {[%emt 0:00:00]} 16. f4 {[%emt 0:10:47]} (16. Qxg3 {vereinfacht} Bxg3 17. f4 Nd5 18. Rf3) 16... h5 {[%emt 0:00:00]} 17. Qxg3 {[%emt 0:01:56]} Bxg3 {[%emt 0:00:00]} 18. Rf3 $36 {[%emt 0:05:29][%mdl 2048] Weiss hat Druck.} h4 {[%emt 0:00:00]} 19. Nbd2 {[%emt 0:04:44]} Nd5 {[%emt 0:00:00][%cal Be7d5,Bd5f6,Bf6e4][%mdl 32]} 20. Nf1 {[%emt 0:02:52]} Nf6 {[%emt 0:00:00]} 21. Bd2 {[%emt 0:04:37]} (21. Nxg3 $11 hxg3+ 22. Kg1) 21... Ne4 $15 {[%emt 0:00:00]} 22. Be1 {[%emt 0:05:56][%cal Re1g3]} Rh6 {[%emt 0:00:00]} (22... Rh5 $15) 23. Kg1 $11 {[%emt 0:04:21]} Rg6 {[%emt 0:00:00]} (23... Rdh8 $11 {bleibt in der Remisbreite.}) 24. Nxg3 {[%emt 0:06:21]} (24. Bxg3 $16 hxg3 25. Re1) 24... hxg3 {[%emt 0:00:00]} 25. Ne3 {[%emt 0:01:09]} Ne7 {[%emt 0:00:00]} 26. Nf1 {[%emt 0:00:32]} (26. Kf1 $11 {sieht stärker aus.}) 26... Nd5 {[%emt 0:00:00] Hervorragende Reitkunst.} ({Ein No Go ist} 26... Rb6 27. b3 $11) ({Günstiger ist} 26... Rh8 $15) 27. Nxg3 {[%emt 0:06:23]} Nxg3 {[%emt 0:00:00]} 28. Rxg3 {[%emt 0:05:33]} Nxf4 {[%emt 0:00:00] Und ...Ne2+ würde nun gewinnen.} 29. Rxg6 {[%emt 0:00:15]} fxg6 {[%emt 0:00:00][%mdl 4096] Endspiel. KRB-KRN} 30. Bd2 {[%emt 0:01:02]} Ne6 {[%emt 0:00:00]} (30... Nd3 $11 {verdient Beachtung.}) 31. Re1 $14 {[%emt 0:01:23]} Kd7 {[%emt 0:00:00]} 32. Kf2 {[%emt 0:00:10]} a6 {[%emt 0:00:19]} 33. Rh1 {[%emt 0:00:46]} Ke7 {[%emt 0:00:20]} 34. g3 {[%emt 0:01:38]} g5 {[%emt 0:00:23][%cal Bg6g5,Bg5g4][%mdl 32]} 35. Kf3 {[%emt 0:00:38]} g4+ {[%emt 0:01:41]} 36. Ke2 {[%emt 0:01:03]} Kf6 {[%emt 0:00:30]} 37. Be3 {[%emt 0:01:50]} b5 {[%emt 0:02:43]} 38. a3 {[%emt 0:00:43]} (38. Rd1 $11) 38... Rd7 {[%emt 0:01:04]} (38... g5 $1 $15 39. Rh6+ Kf7) 39. b3 {[%emt 0:00:37]} Rd8 {[%emt 0:00:37]} 40. Rd1 {[%emt 0:01:00] d5 wäre nun fies.} Ng5 $2 {[%emt 0:02:23] [#]} (40... Rc8 $11 {und Schwarz ist OK.}) 41. Bxg5+ $1 $18 {[%emt 0:00:54]} Kxg5 {[%emt 0:00:12] KR-KR} 42. c4 {[%emt 0:00:08]} f4 {[%emt 0:00:16]} (42... Kf6 $142 43. Kd3 Re8) 43. gxf4+ {[%emt 0:00:29]} Kxf4 {[%emt 0:00:09]} 44. d5 {[%emt 0:00:20]} Ke5 {[%emt 0:01:14] [#]} 45. Ke3 $2 {[%emt 0:00:31]} ({Der einzige Zug:} 45. Kd3 $1 $18) 45... g5 {[%emt 0:03:09]} (45... bxc4 $11 46. bxc4 Rf8) 46. Rg1 {[%emt 0:00:42]} ({Vorzuziehen ist} 46. Re1 $14) 46... Rh8 $11 {[%emt 0:00:08] Die Stellung ist ausgeglichen.} 47. Kd2 {[%emt 0:00:46]} Rh3 {[%emt 0:00:38]} 48. Kc2 {[%emt 0:00:40]} bxc4 {[%emt 0:00:52]} 49. bxc4 {[%emt 0:00:03]} Rxa3 {[%emt 0:00:28]} 50. Rxg4 {[%emt 0:00:11]} Kd6 {[%emt 0:00:38]} 51. Rxg5 {[%emt 0:00:14]} Kc5 {[%emt 0:00:14]} 52. Rg4 {[%emt 0:00:15]} a5 {[%emt 0:00:34]} 53. Re4 {[%emt 0:01:21]} a4 {[%emt 0:00:16]} 54. Kd2 {[%emt 0:00:42]} Rb3 {[%emt 0:00:38]} 55. Kc2 {[%emt 0:00:28] Weiß hat ein paar 100-prozentige Torchancen vergeben.   Gewichteter Fehlerwert: Weiß=0.17 (sehr präzise) /Schwarz=0.23 (präzise) .  Verlustzug:     	---       	Schwarz=1     Gewinn verpasst:   	Weiß=1     	---        Fehler:       	Weiß=6     	Schwarz=7     Ungenau:       	Weiß=3     	---        OK:         	Weiß=17    	Schwarz=24    Bester:       	Weiß=3     	Schwarz=1     Stark:        	Weiß=1     	---} 1/2-1/2

[Event "2nd Cambridge Open 2024"]
[Site "Cambridge"]
[Date "2024.02.22"]
[Round "6.18"]
[White "Hanache, Kai"]
[Black "Martyn, Rafe"]
[Result "1/2-1/2"]
[ECO "B33"]
[WhiteElo "1926"]
[BlackElo "2206"]
[Annotator "RC"]
[PlyCount "46"]
[EventDate "2024.02.18"]
[EventType "swiss"]
[EventCountry "ENG"]
[SourceTitle "playchess.com"]
[Source "ChessBase"]
[SourceQuality "1"]
[TimeControl "5400+30"]

1. e4 {[%emt 1:31:00]} c5 {[%emt 0:03:36]} 2. Nf3 {[%emt 0:00:00]} Nc6 {[%emt 0:00:17]} 3. d4 {[%emt 0:00:00]} cxd4 {[%emt 0:00:05]} 4. Nxd4 {[%emt 0:00:00]} Nf6 {[%emt 0:00:17]} 5. Nc3 {[%emt 0:00:00]} e5 {[%emt 0:00:10]} 6. Nxc6 {[%emt 0:00:00]} bxc6 {[%emt 0:00:10]} 7. Bc4 {[%emt 0:00:00]} Bb4 {[%emt 0:09:14]} 8. O-O {[%emt 0:00:00]} O-O {[%emt 0:17:24]} 9. Qf3 {[%emt 0:00:00]} d6 {[%emt 0:03:25]} 10. h3 {[%emt 0:00:00]} Be6 {[%emt 0:02:30]} 11. Bd3 {[%emt 0:00:00]} Nd7 {[%emt 0:10:13]} 12. Nd5 {[%emt 0:00:00]} Bc5 {[%emt 0:05:59]} 13. Ne3 {[%emt 0:00:00]} Qf6 {[%emt 0:07:18]} 14. Qg3 {[%emt 0:00:00]} Qf4 {[%emt 0:00:46]} 15. Qxf4 {[%emt 0:00:00]} exf4 {[%emt 0:00:02]} 16. Nf5 {[%emt 0:00:00]} g5 {[%emt 0:09:27]} 17. Ne7+ {[%emt 0:00:00]} Kh8 {[%emt 0:00:02]} 18. Nxc6 {[%emt 0:00:00]} Ne5 {[%emt 0:00:07]} 19. b4 {[%emt 0:00:00]} Nxc6 {[%emt 0:03:23]} 20. bxc5 {[%emt 0:00:00]} dxc5 {[%emt 0:00:02]} 21. Bb2+ {[%emt 0:00:00]} f6 {[%emt 0:02:48]} 22. a3 {[%emt 0:00:00]} Ne5 {[%emt 0:00:38]} 23. Be2 {[%emt 0:00:00]} Kg7 {[%emt 0:01:32]} 1/2-1/2

[Event "2nd Cambridge Open 2024"]
[Site "Cambridge"]
[Date "2024.02.22"]
[Round "6.19"]
[White "Borsos, Bogdan"]
[Black "McLean, Robert"]
[Result "1/2-1/2"]
[ECO "D46"]
[WhiteElo "2094"]
[BlackElo "1823"]
[Annotator "NA RC"]
[PlyCount "39"]
[EventDate "2024.02.18"]
[EventType "swiss"]
[EventCountry "ENG"]
[SourceTitle "playchess.com"]
[Source "ChessBase"]
[SourceQuality "1"]
[TimeControl "5400+30"]

1. c4 {[%emt 0:01:34]} Nf6 {[%emt 0:00:57]} 2. Nc3 {[%emt 0:00:37]} e6 {[%emt 0:00:23]} 3. Nf3 {[%emt 0:01:40]} d5 {[%emt 0:00:22]} 4. e3 {[%emt 0:00:09]} c6 {[%emt 0:01:51]} 5. d4 {[%emt 0:00:48]} Bd6 {[%emt 0:00:43]} 6. Bd3 {[%emt 0:01:04]} Nbd7 {[%emt 0:00:48]} 7. O-O {[%emt 0:00:12]} O-O {[%emt 0:00:14]} 8. e4 {[%emt 0:00:11]} dxe4 {[%emt 0:00:07]} 9. Nxe4 {[%emt 0:00:08]} Nxe4 {[%emt 0:00:25]} 10. Bxe4 {[%emt 0:00:06]} Nf6 {[%emt 0:01:41]} 11. Bd3 {[%emt 0:03:48]} c5 {[%emt 0:01:44]} 12. dxc5 {[%emt 0:00:57]} Bxc5 {[%emt 0:00:14]} 13. Qc2 {[%emt 0:02:18]} h6 {[%emt 0:03:16]} 14. a3 {[%emt 0:03:16]} a5 {[%emt 0:02:34]} 15. b3 {[%emt 0:00:14]} b6 {[%emt 0:00:29]} 16. Bb2 {[%emt 0:00:19]} Bb7 {[%emt 0:00:20]} 17. Ne5 {[%emt 0:00:53]} Bd4 {[%emt 0:04:13]} 18. Rad1 {[%emt 0:01:46]} Bxb2 {[%emt 0:00:20]} 19. Qxb2 {[%emt 0:02:57]} Qc7 {[%emt 0:01:56]} 20. Rfe1 {[%emt 0:15:04]} 1/2-1/2

[Event "2nd Cambridge Open 2024"]
[Site "Cambridge"]
[Date "2024.02.22"]
[Round "6.20"]
[White "Zhang, Junyi"]
[Black "Rushbrooke, Remy"]
[Result "1/2-1/2"]
[ECO "C42"]
[WhiteElo "1655"]
[BlackElo "2049"]
[Annotator "RC"]
[PlyCount "97"]
[EventDate "2024.02.18"]
[EventType "swiss"]
[EventCountry "ENG"]
[SourceTitle "playchess.com"]
[Source "ChessBase"]
[SourceQuality "1"]
[TimeControl "5400+30"]

1. e4 {[%emt 0:00:04]} e5 {[%emt 0:03:27]} 2. Nf3 {[%emt 0:00:07]} Nf6 {[%emt 0:00:15]} 3. Nxe5 {[%emt 0:00:06]} d6 {[%emt 0:00:03]} 4. Nf3 {[%emt 0:00:06]} Nxe4 {[%emt 0:00:03]} 5. d4 {[%emt 0:00:15]} d5 {[%emt 0:00:03]} 6. Bd3 {[%emt 0:00:11]} Bd6 {[%emt 0:00:05]} 7. O-O {[%emt 0:00:14]} O-O {[%emt 0:00:04]} 8. Re1 {[%emt 0:00:20]} Bf5 {[%emt 0:03:00]} 9. c4 {[%emt 0:00:09]} c6 {[%emt 0:00:10]} 10. Qb3 {[%emt 0:00:30]} dxc4 {[%emt 0:08:22]} 11. Qxc4 {[%emt 0:01:36]} Be6 {[%emt 0:01:38]} 12. Qc2 {[%emt 0:00:47]} Nf6 {[%emt 0:10:04]} 13. Ng5 {[%emt 0:32:50]} Bd5 {[%emt 0:00:19]} 14. Bxh7+ {[%emt 0:01:18]} Kh8 {[%emt 0:00:04]} 15. Re3 {[%emt 0:08:48]} Re8 {[%emt 0:02:12]} 16. Nc3 {[%emt 0:08:50]} Rxe3 {[%emt 0:11:10]} 17. Bxe3 {[%emt 0:00:46]} Bxh2+ {[%emt 0:03:09]} 18. Kxh2 {[%emt 0:05:40]} Ng4+ {[%emt 0:00:04]} 19. Kg1 {[%emt 0:00:07]} Nxe3 {[%emt 0:00:08]} 20. fxe3 {[%emt 0:00:13]} Qxg5 {[%emt 0:00:06]} 21. Nxd5 {[%emt 0:00:34]} cxd5 {[%emt 0:01:11]} 22. Kf2 {[%emt 0:05:51]} Nc6 {[%emt 0:18:21]} 23. Rh1 {[%emt 0:04:21]} Re8 {[%emt 0:00:28]} 24. Rh3 {[%emt 0:01:09]} Re6 {[%emt 0:10:45]} 25. Qc5 {[%emt 0:03:07]} Rh6 {[%emt 0:00:12]} 26. Rxh6 {[%emt 0:00:46]} Qxh6 {[%emt 0:00:28]} 27. Bd3 {[%emt 0:00:42]} Qh4+ {[%emt 0:00:42]} 28. Kf1 {[%emt 0:01:13]} Qf6+ {[%emt 0:04:56]} 29. Ke2 {[%emt 0:00:53]} Qd8 {[%emt 0:05:52]} 30. Bb5 {[%emt 0:02:02]} Qd7 {[%emt 0:01:40]} 31. Bd3 {[%emt 0:01:38]} g6 {[%emt 0:00:51]} 32. a3 {[%emt 0:04:36]} Kg7 {[%emt 0:01:03]} 33. Bb5 {[%emt 0:01:37]} Qg4+ {[%emt 0:00:30]} 34. Kf2 {[%emt 0:00:22]} Qf5+ {[%emt 0:00:33]} 35. Ke2 {[%emt 0:01:11]} Qe4 {[%emt 0:01:05]} 36. Kf2 {[%emt 0:01:31]} Ne7 {[%emt 0:01:19]} 37. Bd3 {[%emt 0:01:13]} Qxd3 {[%emt 0:05:56]} 38. Qxe7 {[%emt 0:00:05]} Qa6 {[%emt 0:01:24]} 39. Qc5 {[%emt 0:01:00]} Qf6+ {[%emt 0:00:32]} 40. Ke2 {[%emt 0:00:56]} Qg5 {[%emt 0:00:08]} 41. Kf2 {[%emt 0:00:35]} Qf5+ {[%emt 0:00:06]} 42. Ke2 {[%emt 0:00:10]} Qe4 {[%emt 0:00:03]} 43. Kf2 {[%emt 0:00:16]} b6 {[%emt 0:04:01]} 44. Qc7 {[%emt 0:00:38]} Qf5+ {[%emt 0:00:37]} 45. Ke2 {[%emt 0:00:13]} g5 {[%emt 0:03:01]} 46. b4 {[%emt 0:03:30]} g4 {[%emt 0:01:04]} 47. Qf4 {[%emt 0:00:59]} Kg6 {[%emt 0:01:11]} 48. g3 {[%emt 0:01:18]} f6 {[%emt 0:00:28]} 49. Kd2 {[%emt 0:01:10]} 1/2-1/2

[Event "2nd Cambridge Open 2024"]
[Site "Cambridge"]
[Date "2024.02.22"]
[Round "6.21"]
[White "Saine, Zachary"]
[Black "Nawalaniec, Adam"]
[Result "1-0"]
[ECO "B90"]
[WhiteElo "1978"]
[BlackElo "1876"]
[Annotator "RC"]
[PlyCount "75"]
[EventDate "2024.02.18"]
[EventType "swiss"]
[EventCountry "ENG"]
[SourceTitle "playchess.com"]
[Source "ChessBase"]
[SourceQuality "1"]
[TimeControl "5400+30"]

1. e4 {[%emt 0:02:16]} c5 {[%emt 0:00:06]} 2. Nf3 {[%emt 0:00:26]} d6 {[%emt 0:00:05]} 3. d4 {[%emt 0:00:04]} cxd4 {[%emt 0:00:05]} 4. Nxd4 {[%emt 0:00:04]} Nf6 {[%emt 0:00:05]} 5. Nc3 {[%emt 0:00:04]} a6 {[%emt 0:00:03]} 6. Rg1 {[%emt 0:00:05]} e5 {[%emt 0:01:41]} 7. Nb3 {[%emt 0:00:32]} Be7 {[%emt 0:01:59]} 8. g4 {[%emt 0:00:38]} h6 {[%emt 0:02:24]} 9. h4 {[%emt 0:00:29]} Nh7 {[%emt 0:04:32]} 10. g5 {[%emt 0:14:58]} hxg5 {[%emt 0:00:53]} 11. Nd5 {[%emt 0:00:15]} Be6 {[%emt 0:23:12]} 12. hxg5 {[%emt 0:12:44]} Nf8 {[%emt 0:02:37]} 13. Be3 {[%emt 0:01:41]} Nbd7 {[%emt 0:06:26]} 14. Qd2 {[%emt 0:10:42]} Bxd5 {[%emt 0:07:24]} 15. Qxd5 {[%emt 0:00:20]} g6 {[%emt 0:05:18]} 16. Na5 {[%emt 0:05:53]} Qc7 {[%emt 0:04:23]} 17. c3 {[%emt 0:09:52]} Nc5 {[%emt 0:03:43]} 18. Bxc5 {[%emt 0:07:54]} dxc5 {[%emt 0:01:15]} 19. Qxb7 {[%emt 0:00:31]} Qxb7 {[%emt 0:01:15]} 20. Nxb7 {[%emt 0:00:05]} Ne6 {[%emt 0:09:12]} 21. O-O-O {[%emt 0:02:11]} Bxg5+ {[%emt 0:03:45]} 22. Kb1 {[%emt 0:01:10]} Bh4 {[%emt 0:03:13]} 23. Bc4 {[%emt 0:02:00]} Ra7 {[%emt 0:06:28]} 24. Na5 {[%emt 0:08:36]} Bd8 {[%emt 0:06:23]} 25. Nc6 {[%emt 0:02:28]} Rc7 {[%emt 0:01:31]} 26. Nxe5 {[%emt 0:00:31]} Bf6 {[%emt 0:01:10]} 27. Nxg6 {[%emt 0:01:18]} Rh2 {[%emt 0:02:16]} 28. Bxe6 {[%emt 0:01:30]} fxe6 {[%emt 0:00:02]} 29. e5 {[%emt 0:01:31]} Bg7 {[%emt 0:00:53]} 30. Nf4 {[%emt 0:04:38]} Bxe5 {[%emt 0:01:17]} 31. Nxe6 {[%emt 0:01:02]} Rc6 {[%emt 0:00:41]} 32. Nd8 {[%emt 0:00:42]} Rf6 {[%emt 0:00:53]} 33. Rge1 {[%emt 0:03:26]} Rfxf2 {[%emt 0:00:09]} 34. Rxe5+ {[%emt 0:00:04]} Kf8 {[%emt 0:00:11]} 35. Ka1 {[%emt 0:01:29]} Rxb2 {[%emt 0:00:10]} 36. Rf1+ {[%emt 0:01:22]} Kg8 {[%emt 0:00:33]} 37. Rg5+ {[%emt 0:00:06]} Kh8 {[%emt 0:00:57]} 38. Rh5+ {[%emt 0:00:09]} 1-0

[Event "2nd Cambridge Open 2024"]
[Site "Cambridge"]
[Date "2024.02.22"]
[Round "6.22"]
[White "Hebden, Mark L"]
[Black "Rida, Ruqayyah"]
[Result "0-1"]
[ECO "D00"]
[WhiteElo "2416"]
[BlackElo "1743"]
[Annotator "RC"]
[PlyCount "116"]
[EventDate "2024.02.18"]
[EventType "swiss"]
[EventCountry "ENG"]
[SourceTitle "playchess.com"]
[Source "ChessBase"]
[SourceQuality "1"]
[TimeControl "5400+30"]

1. d4 {[%emt 0:00:07]} Nf6 {[%emt 0:00:18]} 2. Bg5 {[%emt 0:00:10]} g6 {[%emt 0:00:14]} 3. Bxf6 {[%emt 0:03:28]} exf6 {[%emt 0:00:10]} 4. e3 {[%emt 0:00:20]} Bg7 {[%emt 0:01:36]} 5. c4 {[%emt 0:02:38]} d5 {[%emt 0:02:27]} 6. Nc3 {[%emt 0:02:09]} dxc4 {[%emt 0:02:35]} 7. Bxc4 {[%emt 0:00:09]} f5 {[%emt 0:01:16]} 8. Nf3 {[%emt 0:01:08]} O-O {[%emt 0:01:32]} 9. O-O {[%emt 0:00:48]} Nc6 {[%emt 0:04:55]} 10. a3 {[%emt 0:02:24]} a6 {[%emt 0:05:44]} 11. Rc1 {[%emt 0:05:51]} Rb8 {[%emt 0:09:58]} 12. Qe2 {[%emt 0:14:55]} b5 {[%emt 0:11:34]} 13. Ba2 {[%emt 0:01:12]} Bb7 {[%emt 0:05:42]} 14. Rfd1 {[%emt 0:00:22]} Re8 {[%emt 0:04:58]} 15. Ne5 {[%emt 0:02:57]} Nxe5 {[%emt 0:12:37]} 16. dxe5 {[%emt 0:00:10]} Qe7 {[%emt 0:01:53]} 17. f4 {[%emt 0:00:31]} c5 {[%emt 0:07:06]} 18. Bd5 {[%emt 0:02:36]} Rbd8 {[%emt 0:07:37]} 19. Bxb7 {[%emt 0:10:13]} Qxb7 {[%emt 0:00:03]} 20. e4 {[%emt 0:05:20]} Rxd1+ {[%emt 0:07:31]} 21. Rxd1 {[%emt 0:00:35]} f6 {[%emt 0:01:09]} 22. exf6 {[%emt 0:02:21]} Bxf6 {[%emt 0:01:13]} 23. e5 {[%emt 0:00:06]} Be7 {[%emt 0:01:10]} 24. Nd5 {[%emt 0:01:11]} Rd8 {[%emt 0:00:29]} 25. Nc3 {[%emt 0:14:02]} Rxd1+ {[%emt 0:01:25]} 26. Qxd1 {[%emt 0:00:21]} Kf7 {[%emt 0:00:46]} 27. Kf2 {[%emt 0:03:47]} Ke6 {[%emt 0:03:09]} 28. g3 {[%emt 0:00:59]} Qc6 {[%emt 0:01:25]} 29. Qf3 {[%emt 0:03:25]} Qxf3+ {[%emt 0:00:40]} 30. Kxf3 {[%emt 0:00:02]} c4 {[%emt 0:01:06]} 31. h3 {[%emt 0:01:16]} Bc5 {[%emt 0:02:45]} 32. Ne2 {[%emt 0:01:22]} a5 {[%emt 0:00:25]} 33. g4 {[%emt 0:00:44]} b4 {[%emt 0:00:42]} 34. gxf5+ {[%emt 0:00:13]} gxf5 {[%emt 0:00:17]} 35. axb4 {[%emt 0:02:14]} axb4 {[%emt 0:00:14]} 36. Nc1 {[%emt 0:01:01]} Bd4 {[%emt 0:01:09]} 37. b3 {[%emt 0:00:00]} Bb2 {[%emt 0:00:16]} 38. Ne2 {[%emt 0:00:24]} cxb3 {[%emt 0:00:13]} 39. Ke3 {[%emt 0:00:08]} Bxe5 {[%emt 0:00:54]} 40. Kd3 {[%emt 0:01:28]} Bd6 {[%emt 0:00:38]} 41. Nd4+ {[%emt 0:00:13]} Kf6 {[%emt 0:00:31]} 42. Nxb3 {[%emt 0:01:12]} Bxf4 {[%emt 0:00:07]} 43. Nd4 {[%emt 0:00:09]} Be5 {[%emt 0:00:16]} 44. Nf3 {[%emt 0:00:27]} Bc3 {[%emt 0:00:05]} 45. Kc4 {[%emt 0:00:14]} h6 {[%emt 0:01:07]} 46. Kd3 {[%emt 0:00:14]} Ke6 {[%emt 0:00:40]} 47. Kc4 {[%emt 0:00:11]} Kd6 {[%emt 0:00:36]} 48. Kd3 {[%emt 0:00:49]} Kd5 {[%emt 0:00:36]} 49. Nh4 {[%emt 0:00:56]} f4 {[%emt 0:00:20]} 50. Nf3 {[%emt 0:00:16]} Kc5 {[%emt 0:00:35]} 51. Nh4 {[%emt 0:00:45]} Kb5 {[%emt 0:00:08]} 52. Nf5 {[%emt 0:00:40]} Ka4 {[%emt 0:00:39]} 53. Nxh6 {[%emt 0:00:22]} b3 {[%emt 0:00:36]} 54. Nf5 {[%emt 0:00:22]} Be5 {[%emt 0:00:44]} 55. Ne7 {[%emt 0:01:26]} Ka3 {[%emt 0:00:32]} 56. Nc6 {[%emt 0:00:29]} b2 {[%emt 0:00:13]} 57. Nxe5 {[%emt 0:00:48]} b1=Q+ {[%emt 0:00:09]} 58. Kd4 {[%emt 0:00:07]} Qb2+ {[%emt 0:00:31]} 0-1

[Event "2nd Cambridge Open 2024"]
[Site "Cambridge"]
[Date "2024.02.22"]
[Round "6.23"]
[White "Golubovic, Erik"]
[Black "Bradbury, Neil H"]
[Result "1-0"]
[ECO "E16"]
[WhiteElo "2025"]
[BlackElo "2217"]
[Annotator "RC"]
[PlyCount "111"]
[EventDate "2024.02.18"]
[EventType "swiss"]
[EventCountry "ENG"]
[SourceTitle "playchess.com"]
[Source "ChessBase"]
[SourceQuality "1"]
[TimeControl "5400+30"]

1. d4 {[%emt 0:00:14]} Nf6 {[%emt 0:00:55]} 2. c4 {[%emt 0:00:09]} e6 {[%emt 0:00:17]} 3. Nf3 {[%emt 0:00:06]} Bb4+ {[%emt 0:02:03]} 4. Bd2 {[%emt 0:00:07]} a5 {[%emt 0:00:18]} 5. g3 {[%emt 0:00:18]} b6 {[%emt 0:01:17]} 6. Bg2 {[%emt 0:01:24]} Bb7 {[%emt 0:00:05]} 7. O-O {[%emt 0:01:07]} O-O {[%emt 0:03:04]} 8. Nc3 {[%emt 0:03:02]} d5 {[%emt 0:08:33]} 9. cxd5 {[%emt 0:10:16]} exd5 {[%emt 0:04:56]} 10. Ne5 {[%emt 0:02:42]} Bxc3 {[%emt 0:10:27]} 11. bxc3 {[%emt 0:08:46]} Ne4 {[%emt 0:01:42]} 12. f3 {[%emt 0:06:15]} Nd6 {[%emt 0:04:26]} 13. Qc2 {[%emt 0:07:27]} Re8 {[%emt 0:05:06]} 14. Rae1 {[%emt 0:05:03]} f6 {[%emt 0:01:23]} 15. Nd3 {[%emt 0:02:51]} Nd7 {[%emt 0:05:01]} 16. Nf4 {[%emt 0:02:52]} c5 {[%emt 0:01:56]} 17. e4 {[%emt 0:05:21]} dxe4 {[%emt 0:11:44]} 18. fxe4 {[%emt 0:00:20]} Ba6 {[%emt 0:00:10]} 19. Rf2 {[%emt 0:04:03]} cxd4 {[%emt 0:00:29]} 20. cxd4 {[%emt 0:00:25]} Rc8 {[%emt 0:02:29]} 21. Qd1 {[%emt 0:01:42]} Bc4 {[%emt 0:03:16]} 22. Bc3 {[%emt 0:09:25]} Bf7 {[%emt 0:12:19]} 23. Ba1 {[%emt 0:01:31]} Nc4 {[%emt 0:00:09]} 24. Qg4 {[%emt 0:05:46]} Qc7 {[%emt 0:07:33]} 25. Rfe2 {[%emt 0:08:53]} Rcd8 {[%emt 0:01:53]} 26. h4 {[%emt 0:01:29]} b5 {[%emt 0:01:09]} 27. h5 {[%emt 0:03:28]} h6 {[%emt 0:00:44]} 28. Kh2 {[%emt 0:01:07]} b4 {[%emt 0:00:08]} 29. Ng6 {[%emt 0:02:29]} a4 {[%emt 0:02:23]} 30. e5 {[%emt 0:02:27]} Be6 {[%emt 0:02:15]} 31. Qh4 {[%emt 0:00:40]} fxe5 {[%emt 0:00:35]} 32. dxe5 {[%emt 0:00:09]} Nf8 {[%emt 0:01:27]} 33. Nf4 {[%emt 0:01:43]} Qc5 {[%emt 0:04:11]} 34. Nxe6 {[%emt 0:00:54]} Nxe6 {[%emt 0:00:02]} 35. Rc1 {[%emt 0:01:02]} Nd4 {[%emt 0:00:14]} 36. Re4 {[%emt 0:00:12]} Nf3+ {[%emt 0:02:01]} 37. Bxf3 {[%emt 0:00:10]} Qf2+ {[%emt 0:00:03]} 38. Bg2 {[%emt 0:00:32]} Rd2 {[%emt 0:00:21]} 39. Rg1 {[%emt 0:00:45]} Ne3 {[%emt 0:00:35]} 40. Rxe3 {[%emt 0:01:10]} Qxe3 {[%emt 0:00:01]} 41. Qxb4 {[%emt 0:00:39]} Rc8 {[%emt 0:01:07]} 42. Qxa4 {[%emt 0:02:29]} Rcc2 {[%emt 0:00:16]} 43. Qe8+ {[%emt 0:00:00]} Kh7 {[%emt 0:00:03]} 44. Qg6+ {[%emt 0:00:00]} Kh8 {[%emt 0:00:27]} 45. Qe8+ {[%emt 0:00:00]} Kh7 {[%emt 0:00:00]} 46. Qg6+ {[%emt 0:00:31]} Kh8 {[%emt 0:00:01]} 47. Qf5 {[%emt 0:01:01]} Rf2 {[%emt 0:01:06]} 48. Qg4 {[%emt 0:00:54]} Rfd2 {[%emt 0:00:52]} 49. e6 {[%emt 0:00:19]} Qg5 {[%emt 0:01:45]} 50. Qxg5 {[%emt 0:00:09]} hxg5 {[%emt 0:00:01]} 51. h6 {[%emt 0:00:06]} Rxa2 {[%emt 0:00:12]} 52. Bxg7+ {[%emt 0:00:23]} Kh7 {[%emt 0:00:22]} 53. e7 {[%emt 0:00:46]} Re2 {[%emt 0:00:11]} 54. Bf8 {[%emt 0:00:07]} g4 {[%emt 0:00:14]} 55. Kh1 {[%emt 0:00:13]} Rad2 {[%emt 0:01:02]} 56. Rc1 {[%emt 0:00:53]} 1-0